[Event "XVI Memorial Lezcano Montalvo 2024"]
[Site "Gran Canaria"]
[Date "2024.03.30"]
[Round "8.12"]
[White "Fernandez Manrique, Agustin"]
[Black "Fiorito, Joaquin"]
[Result "0-1"]
[ECO "B12"]
[WhiteElo "2017"]
[BlackElo "2409"]
[Annotator "TA"]
[PlyCount "69"]
[EventDate "2024.03.23"]
[EventType "swiss"]
[EventCountry "ESP"]
[SourceTitle "playchess.com"]
[Source "ChessBase"]
[SourceQuality "1"]
[TimeControl "5400+30"]

{[%evp 9,69,-12,32,22,23,14,45,39,93,93,78,80,106,95,77,87,93,77,119,121,116,138,126,82,96,77,114,60,74,77,90,87,77,84,140,89,344,333,323,319,406,425,396,400,608,603,626,624,567,425,538,536,647,590,645,643,601,568,866,840,952,928]} 1. e4 {[%emt 0:00:11]} c6 {[%emt 0:00:07]} 2. d4 {[%emt 0:00:06]} d5 {[%emt 0:00:04]} 3. f3 {[%emt 0:00:03]} e6 {[%emt 0:01:47]} 4. Nc3 {[%emt 0:01:18]} Bb4 {[%emt 0:00:26]} 5. Bd2 {[%emt 0:00:16]} Bxc3 {[%emt 0:12:48]} 6. Bxc3 {[%emt 0:00:03]} dxe4 {[%emt 0:00:05]} 7. Nh3 {[%emt 0:00:02]} Nf6 {[%emt 0:10:28]} 8. fxe4 $1 {[%emt 0:04:10] White is slightly better.} Nxe4 {[%emt 0:01:39]} ({Black should try} 8... e5 $1 $14) 9. Qg4 $1 $16 {[%emt 0:00:07][%csl LRe4,LRg7]} Nxc3 {[%emt 0:11:11]} 10. Qxg7 $1 {[%emt 0:00:19]} Rf8 {[%emt 0:00:52]} 11. bxc3 {[%emt 0:00:19][%cal Oh3g5]} Qh4+ {[%emt 0:03:04]} 12. Nf2 {[%emt 0:00:27]} Nd7 {[%emt 0:01:22]} 13. Bd3 {[%emt 0:02:36][%cal Oe1g1]} h6 {[%emt 0:05:54][%cal Bh7h6,Bh6g5][%mdl 32]} 14. O-O {[%emt 0:25:54] Black must now prevent Ne4.} Qg5 {[%emt 0:05:00] [#]} 15. Qxg5 {[%emt 0:00:02]} hxg5 {[%emt 0:00:06]} 16. a4 {[%emt 0:01:06][%cal Ba2a4,Ba4a5][%mdl 32]} Rg8 {[%emt 0:09:45]} 17. a5 {[%emt 0:01:19]} Nf6 {[%emt 0:02:13]} 18. Rab1 {[%emt 0:02:27]} (18. c4 $16) 18... Rb8 {[%emt 0:07:13]} 19. c4 {[%emt 0:04:28][%cal Bc3c4,Bc4c5][%mdl 32]} b6 {[%emt 0:08:41]} 20. axb6 {[%emt 0:01:28]} axb6 {[%emt 0:00:02]} 21. c5 {[%emt 0:17:12]} b5 {[%emt 0:01:17] [#]} (21... Nd7 $142) 22. c4 {[%emt 0:00:01]} (22. Be2 $142 $1) 22... Ba6 $2 {[%emt 0:04:27][%mdl 8192] A mistake that costs the game.} (22... Bd7 $16 {might work better.}) 23. Ne4 $18 {[%emt 0:02:39]} Nxe4 {[%emt 0:01:20]} 24. Bxe4 {[%emt 0:00:02]} b4 {[%emt 0:05:33]} 25. Bxc6+ {[%emt 0:00:48]} Kf8 {[%emt 0:00:43]} 26. Bb5 {[%emt 0:00:47]} (26. Rfc1 Kg7 27. Ra1 Bb7 $16) 26... Bxb5 {[%emt 0:00:48]} (26... Bb7 $142 27. c6 (27. Rxb4 Be4 $18) 27... Bc8 28. Rxb4 Rg7) 27. Rxb4 $1 {[%emt 0:00:02] White is clearly winning.} ({Stronger than} 27. cxb5 Rxb5 28. Ra1 Kg7 $15) 27... Ke7 {[%emt 0:01:02]} 28. cxb5 {[%emt 0:00:08][%mdl 4096] Endgame. KRR-KRR} Rgc8 {[%emt 0:01:03]} 29. Ra4 {[%emt 0:01:44]} Rb7 {[%emt 0:02:09] Inhibits Ra7.} 30. b6 {[%emt 0:02:32] And now Rfa1 would win.} e5 {[%emt 0:00:58]} 31. Re1 {[%emt 0:00:14]} (31. dxe5 Rxc5 32. Rf5 Ke6 33. Rxg5 Rxb6 $11) 31... f6 {[%emt 0:00:34]} 32. Ra5 {[%emt 0:00:26]} Ke6 {[%emt 0:00:44]} 33. dxe5 {[%emt 0:00:06]} fxe5 {[%emt 0:00:33] [#]} 34. Rxe5+ $3 {[%emt 0:00:01][%mdl 512]} Kxe5 {[%emt 0:00:22]} (34... Kf6 35. Rd5) 35. c6+ {[%emt 0:34:37][%mdl 32768] Weighted Error Value: White=0.12 (very precise) /Black=0.50.  Loses game:     	---       	Black=1      Mistake:       	White=2     	Black=3      Inaccurate:     	White=1     	Black=4      OK:         	White=9     	Black=7      Best:        	White=4     	Black=2      Strong:       	White=4     	---       . Loss on time!?} 0-1

[Event "XVI Memorial Lezcano Montalvo 2024"]
[Site "Gran Canaria"]
[Date "2024.03.30"]
[Round "8.13"]
[White "Van Zyl-Rudd, Jack"]
[Black "Garbezza, Davide"]
[Result "1-0"]
[ECO "E11"]
[WhiteElo "2264"]
[BlackElo "1888"]
[Annotator "RC"]
[PlyCount "85"]
[EventDate "2024.03.23"]
[EventType "swiss"]
[EventCountry "ESP"]
[SourceTitle "playchess.com"]
[Source "ChessBase"]
[SourceQuality "1"]
[TimeControl "5400+30"]

1. d4 {[%emt 0:04:28]} Nf6 {[%emt 0:00:05]} 2. c4 {[%emt 0:00:03]} e6 {[%emt 0:00:03]} 3. g3 {[%emt 0:00:03]} d5 {[%emt 0:00:05]} 4. Nf3 {[%emt 0:00:06]} Bb4+ {[%emt 0:00:05]} 5. Bd2 {[%emt 0:00:05]} Be7 {[%emt 0:00:03]} 6. Qc2 {[%emt 0:00:13]} O-O {[%emt 0:00:20]} 7. Bg2 {[%emt 0:00:25]} Nbd7 {[%emt 0:00:05]} 8. O-O {[%emt 0:00:32]} Ne4 {[%emt 0:00:03]} 9. Nc3 {[%emt 0:01:27]} Nxd2 {[%emt 0:01:38]} 10. Nxd2 {[%emt 0:01:44]} c6 {[%emt 0:10:17]} 11. Rad1 {[%emt 0:03:15]} dxc4 {[%emt 0:12:25]} 12. Nxc4 {[%emt 0:00:15]} Rb8 {[%emt 0:02:20]} 13. e4 {[%emt 0:02:27]} b5 {[%emt 0:01:05]} 14. Ne3 {[%emt 0:00:27]} Nf6 {[%emt 0:01:12]} 15. e5 {[%emt 0:12:13]} Nd5 {[%emt 0:02:00]} 16. Ncxd5 {[%emt 0:01:51]} cxd5 {[%emt 0:00:08]} 17. f4 {[%emt 0:00:40]} g6 {[%emt 0:16:52]} 18. g4 {[%emt 0:04:08]} f5 {[%emt 0:05:49]} 19. Qe2 {[%emt 0:05:03]} Ba6 {[%emt 0:06:59]} 20. Rf3 {[%emt 0:05:21]} fxg4 {[%emt 0:10:33]} 21. Nxg4 {[%emt 0:00:41]} Qb6 {[%emt 0:00:05]} 22. Qf2 {[%emt 0:11:11]} Rbc8 {[%emt 0:02:16]} 23. Ne3 {[%emt 0:01:36]} b4 {[%emt 0:05:06]} 24. Bh3 {[%emt 0:04:52]} Bb7 {[%emt 0:03:48]} 25. Qg2 {[%emt 0:02:41]} Rc4 {[%emt 0:02:02]} 26. Qg4 {[%emt 0:03:12]} Rf5 {[%emt 0:03:44]} 27. Nxc4 {[%emt 0:08:19]} dxc4 {[%emt 0:00:03]} 28. Rf2 {[%emt 0:00:15]} Bd5 {[%emt 0:02:23]} 29. Qg3 {[%emt 0:01:20]} Rh5 {[%emt 0:01:04]} 30. Qe3 {[%emt 0:03:11]} Rh4 {[%emt 0:02:22]} 31. Bg2 {[%emt 0:02:18]} Rg4 {[%emt 0:01:52]} 32. h3 {[%emt 0:00:48]} Rxg2+ {[%emt 0:00:05]} 33. Rxg2 {[%emt 0:00:04]} Bxg2 {[%emt 0:00:05]} 34. Kxg2 {[%emt 0:00:06]} b3 {[%emt 0:00:19]} 35. axb3 {[%emt 0:00:29]} cxb3 {[%emt 0:00:17]} 36. Qe4 {[%emt 0:03:25]} a5 {[%emt 0:01:27]} 37. d5 {[%emt 0:00:38]} exd5 {[%emt 0:00:19]} 38. Qxd5+ {[%emt 0:00:12]} Kf8 {[%emt 0:00:07]} 39. f5 {[%emt 0:03:21]} gxf5 {[%emt 0:00:12]} 40. e6 {[%emt 0:00:18]} Qc7 {[%emt 0:00:58]} 41. Qxf5+ {[%emt 0:00:26]} Kg7 {[%emt 0:00:08]} 42. Rd7 {[%emt 0:02:16]} Qc6+ {[%emt 0:00:50]} 43. Kg3 {[%emt 0:00:24]} 1-0

[Event "XVI Memorial Lezcano Montalvo 2024"]
[Site "Gran Canaria"]
[Date "2024.03.30"]
[Round "8.14"]
[White "Tytynnik, Artem"]
[Black "Bergero, Simone"]
[Result "1-0"]
[ECO "B32"]
[WhiteElo "2197"]
[BlackElo "2022"]
[Annotator "RC"]
[PlyCount "78"]
[EventDate "2024.03.23"]
[EventType "swiss"]
[EventCountry "ESP"]
[SourceTitle "playchess.com"]
[Source "ChessBase"]
[SourceQuality "1"]
[TimeControl "5400+30"]

1. e4 {[%emt 0:00:03]} c5 {[%emt 0:00:11]} 2. Nf3 {[%emt 0:00:08]} Nc6 {[%emt 0:00:07]} 3. d4 {[%emt 0:00:05]} cxd4 {[%emt 0:00:06]} 4. Nxd4 {[%emt 0:00:02]} e5 {[%emt 0:00:20]} 5. Nb5 {[%emt 0:00:16]} d6 {[%emt 0:00:13]} 6. N1c3 {[%emt 0:00:21]} a6 {[%emt 0:00:15]} 7. Na3 {[%emt 0:00:13]} Be7 {[%emt 0:00:18]} 8. Nc4 {[%emt 0:02:01]} b5 {[%emt 0:00:32]} 9. Ne3 {[%emt 0:00:13]} Nf6 {[%emt 0:00:19]} 10. g3 {[%emt 0:01:02]} h5 {[%emt 0:00:55]} 11. h3 {[%emt 0:17:39]} h4 {[%emt 0:01:59]} 12. g4 {[%emt 0:02:39]} Nd4 {[%emt 0:04:36]} 13. f4 {[%emt 0:11:52]} Bb7 {[%emt 0:07:35]} 14. Bg2 {[%emt 0:01:37]} Rc8 {[%emt 0:04:19]} 15. O-O {[%emt 0:03:36]} Qb6 {[%emt 0:16:39]} 16. Kh2 {[%emt 0:06:24]} b4 {[%emt 0:06:22]} 17. Ncd5 {[%emt 0:05:22]} Nxd5 {[%emt 0:00:56]} 18. exd5 {[%emt 0:10:40]} exf4 {[%emt 0:01:59]} 19. Rxf4 {[%emt 0:02:40]} Bf6 {[%emt 0:00:32]} 20. Rxf6 {[%emt 0:05:29]} gxf6 {[%emt 0:01:11]} 21. Bd2 {[%emt 0:00:49]} Kf8 {[%emt 0:24:36]} 22. c3 {[%emt 0:01:11]} bxc3 {[%emt 0:03:25]} 23. bxc3 {[%emt 0:00:47]} Nb5 {[%emt 0:00:41]} 24. c4 {[%emt 0:01:40]} Na3 {[%emt 0:00:44]} 25. Qb3 {[%emt 0:04:48]} Qd4 {[%emt 0:06:27]} 26. Rd1 {[%emt 0:03:10]} Nxc4 {[%emt 0:02:23]} 27. Nxc4 {[%emt 0:02:24]} Qxc4 {[%emt 0:01:21]} 28. Qxb7 {[%emt 0:00:15]} Kg7 {[%emt 0:00:31]} 29. Rc1 {[%emt 0:00:59]} Qb5 {[%emt 0:00:05]} 30. Qxb5 {[%emt 0:00:38]} axb5 {[%emt 0:00:02]} 31. Rxc8 {[%emt 0:00:27]} Rxc8 {[%emt 0:00:02]} 32. Bb4 {[%emt 0:00:52]} Rc2 {[%emt 0:01:02]} 33. a3 {[%emt 0:04:06]} f5 {[%emt 0:00:39]} 34. gxf5 {[%emt 0:00:28]} Kf6 {[%emt 0:00:02]} 35. Bxd6 {[%emt 0:00:51]} Kxf5 {[%emt 0:00:08]} 36. Bb4 {[%emt 0:02:34]} Ke5 {[%emt 0:02:52]} 37. d6 {[%emt 0:00:58]} Ke6 {[%emt 0:00:28]} 38. Kg1 {[%emt 0:00:45]} f5 {[%emt 0:00:17]} 39. Bf1 {[%emt 0:00:15]} Kd5 {[%emt 0:02:57]} 1-0

[Event "XVI Memorial Lezcano Montalvo 2024"]
[Site "Gran Canaria"]
[Date "2024.03.30"]
[Round "8.15"]
[White "Lizzul Coppe, Mirko"]
[Black "Marrero Cardenes, Agustin"]
[Result "1-0"]
[ECO "A48"]
[WhiteElo "2027"]
[BlackElo "2093"]
[Annotator "NA RC"]
[PlyCount "100"]
[EventDate "2024.03.23"]
[EventType "swiss"]
[EventCountry "ESP"]
[SourceTitle "playchess.com"]
[Source "ChessBase"]
[SourceQuality "1"]
[TimeControl "5400+30"]

1. d4 {[%emt 0:00:08]} Nf6 {[%emt 0:00:22]} 2. Nf3 {[%emt 0:00:08]} g6 {[%emt 0:00:39]} 3. e3 {[%emt 0:01:36]} Bg7 {[%emt 0:00:23]} 4. Bd3 {[%emt 0:01:49]} O-O {[%emt 0:01:16]} 5. O-O {[%emt 0:00:16]} d6 {[%emt 0:01:11]} 6. b3 {[%emt 0:01:21]} Nc6 {[%emt 0:04:09] A48: Königsindisch (ohne c2-c4).} 7. Bb2 {[%emt 0:07:04]} e5 {[%emt 0:01:48]} 8. dxe5 {[%emt 0:02:52]} Ng4 {[%emt 0:00:20]} 9. h3 {[%emt 0:06:57]} Ngxe5 {[%emt 0:00:28]} 10. Nxe5 {[%emt 0:00:08]} Nxe5 {[%emt 0:00:11]} 11. Nc3 {[%emt 0:06:20]} Nxd3 {[%emt 0:09:27]} 12. cxd3 {[%emt 0:03:36]} d5 {[%emt 0:03:33]} 13. Qc2 {[%emt 0:08:09]} d4 {[%emt 0:03:56]} 14. Ne4 {[%emt 0:02:25]} c6 {[%emt 0:08:27]} 15. Ba3 {[%emt 0:13:59]} Re8 {[%emt 0:00:55]} 16. Nd6 {[%emt 0:00:43]} Bf8 {[%emt 0:00:51]} 17. Nc4 {[%emt 0:10:09]} Bxa3 {[%emt 0:00:29]} 18. Nxa3 {[%emt 0:00:02]} dxe3 {[%emt 0:03:23]} 19. fxe3 {[%emt 0:01:47]} Qg5 {[%emt 0:04:31]} 20. Nc4 {[%emt 0:03:06]} Bxh3 {[%emt 0:09:01]} 21. Qf2 {[%emt 0:06:27]} f5 {[%emt 0:04:47]} 22. Qf3 {[%emt 0:06:19]} Bg4 {[%emt 0:00:10]} 23. Qg3 {[%emt 0:00:07]} Qe7 {[%emt 0:06:01]} 24. Rae1 {[%emt 0:04:39]} b5 {[%emt 0:01:57]} 25. Nd6 {[%emt 0:00:46]} Red8 {[%emt 0:01:35]} 26. Nxf5 {[%emt 0:00:46]} gxf5 {[%emt 0:01:52]} 27. Rxf5 {[%emt 0:00:06]} Qg7 {[%emt 0:00:06]} 28. Rf4 {[%emt 0:01:36]} h5 {[%emt 0:00:52]} 29. Ref1 {[%emt 0:01:16]} Rf8 {[%emt 0:03:26]} 30. Rxf8+ {[%emt 0:00:52]} Rxf8 {[%emt 0:00:04]} 31. Rxf8+ {[%emt 0:00:07]} Qxf8 {[%emt 0:00:05]} 32. Qe5 {[%emt 0:01:17]} Qd8 {[%emt 0:01:00]} 33. Qe4 {[%emt 0:01:14]} Qd6 {[%emt 0:01:09]} 34. Qe8+ {[%emt 0:01:37]} Kg7 {[%emt 0:00:09]} 35. e4 {[%emt 0:01:27]} Qd7 {[%emt 0:02:49]} 36. Qe5+ {[%emt 0:00:26]} Kg6 {[%emt 0:00:14]} 37. d4 {[%emt 0:03:02]} Qe6 {[%emt 0:00:31]} 38. Qf4 {[%emt 0:00:21]} Qe7 {[%emt 0:01:12]} 39. Kh2 {[%emt 0:02:40]} Qf6 {[%emt 0:01:06]} 40. Qe3 {[%emt 0:00:45]} Qg5 {[%emt 0:00:16]} 41. Qe1 {[%emt 0:01:50]} Qf4+ {[%emt 0:00:20]} 42. Kg1 {[%emt 0:00:23]} Be6 {[%emt 0:00:17]} 43. Qe2 {[%emt 0:00:33]} h4 {[%emt 0:01:02]} 44. Qd3 {[%emt 0:00:22]} Qg3 {[%emt 0:00:35]} 45. Qe2 {[%emt 0:00:50]} h3 {[%emt 0:00:25]} 46. d5 {[%emt 0:00:09]} cxd5 {[%emt 0:01:27]} 47. exd5 {[%emt 0:00:08]} Bxd5 {[%emt 0:01:05]} 48. Qe8+ {[%emt 0:00:27]} Bf7 {[%emt 0:00:17]} 49. Qe4+ {[%emt 0:00:12]} Kh6 $19 {[%emt 0:00:41]} 50. Qc6+ {[%emt 0:01:00]} Kg7 {[%emt 0:24:40]} 1-0

[Event "XVI Memorial Lezcano Montalvo 2024"]
[Site "Gran Canaria"]
[Date "2024.03.30"]
[Round "8.16"]
[White "Sosa Suarez, Carla Cristina"]
[Black "Perez Bolanos, Joel"]
[Result "0-1"]
[ECO "D05"]
[WhiteElo "1980"]
[BlackElo "2046"]
[Annotator "NA RC"]
[PlyCount "68"]
[EventDate "2024.03.23"]
[EventType "swiss"]
[EventCountry "ESP"]
[SourceTitle "playchess.com"]
[Source "ChessBase"]
[SourceQuality "1"]
[TimeControl "5400+30"]

1. d4 {[%emt 0:00:04]} Nf6 {[%emt 0:00:48]} 2. Nf3 {[%emt 0:00:12]} e6 {[%emt 0:00:26]} 3. e3 {[%emt 0:00:05]} b6 {[%emt 0:00:24]} 4. Bd3 {[%emt 0:00:22]} Bb7 {[%emt 0:00:13]} 5. O-O {[%emt 0:00:07]} Be7 {[%emt 0:00:14]} 6. Nbd2 {[%emt 0:00:31]} d5 {[%emt 0:00:09]} 7. Ne5 {[%emt 0:01:07]} O-O {[%emt 0:01:55]} 8. Qe2 {[%emt 0:05:17]} c5 {[%emt 0:01:10]} 9. b3 {[%emt 0:01:30]} Nbd7 {[%emt 0:01:43]} 10. Bb2 {[%emt 0:04:19]} Rc8 {[%emt 0:03:05]} 11. f4 {[%emt 0:04:21]} Ne4 {[%emt 0:01:48]} 12. Rad1 {[%emt 0:18:18]} Ndf6 {[%emt 0:05:42]} 13. Bxe4 {[%emt 0:10:41]} dxe4 {[%emt 0:00:14]} 14. dxc5 {[%emt 0:00:39]} Qc7 {[%emt 0:00:19]} 15. c6 {[%emt 0:12:33]} Bxc6 {[%emt 0:00:57]} 16. Nxc6 {[%emt 0:00:04]} Qxc6 {[%emt 0:00:07]} 17. c4 {[%emt 0:01:15]} Rfd8 {[%emt 0:02:11]} 18. Nb1 {[%emt 0:01:06]} a6 {[%emt 0:03:09]} 19. Nc3 {[%emt 0:01:57]} Nd7 {[%emt 0:02:28]} 20. Qc2 {[%emt 0:07:16]} f5 {[%emt 0:00:26]} 21. g4 {[%emt 0:08:27]} b5 {[%emt 0:19:45]} 22. gxf5 {[%emt 0:01:22]} exf5 {[%emt 0:00:06]} 23. Nd5 {[%emt 0:02:03]} Bf8 {[%emt 0:00:05]} 24. Qc3 {[%emt 0:10:02]} Qe6 {[%emt 0:00:13]} 25. Kh1 {[%emt 0:01:11]} Qf7 {[%emt 0:04:14]} 26. Rg1 {[%emt 0:00:55]} Nc5 {[%emt 0:01:06]} 27. Nf6+ {[%emt 0:03:51]} Kh8 {[%emt 0:00:04]} 28. Qe5 {[%emt 0:02:04]} Rxd1 {[%emt 0:00:51]} 29. Rxd1 {[%emt 0:01:12]} Qxf6 {[%emt 0:00:35]} 30. Qxf6 {[%emt 0:01:16]} gxf6 {[%emt 0:00:04]} 31. Bxf6+ {[%emt 0:00:02]} Bg7 {[%emt 0:02:30]} 32. Bxg7+ {[%emt 0:00:31]} Kxg7 {[%emt 0:00:04]} 33. cxb5 {[%emt 0:00:14]} axb5 {[%emt 0:00:04]} 34. Rd5 {[%emt 0:00:10]} Kf6 {[%emt 0:01:22]} 0-1

[Event "XVI Memorial Lezcano Montalvo 2024"]
[Site "Gran Canaria"]
[Date "2024.03.30"]
[Round "8.18"]
[White "de Leon Navarro, Claudio"]
[Black "Estremera Panos, Sergio"]
[Result "0-1"]
[ECO "B30"]
[WhiteElo "1931"]
[BlackElo "2233"]
[Annotator "ChessBase"]
[PlyCount "80"]
[EventDate "2024.03.23"]
[EventType "swiss"]
[EventCountry "ESP"]
[SourceTitle "playchess.com"]
[Source "ChessBase"]
[SourceQuality "1"]
[TimeControl "5400+30"]

1. e4 {[%emt 0:00:04]} c5 {[%emt 0:01:05]} 2. Nc3 {[%emt 0:00:30]} Nc6 {[%emt 0:00:19]} 3. Bb5 {[%emt 0:00:24]} Nd4 {[%emt 0:00:26]} 4. Nf3 {[%emt 0:00:31]} e6 {[%emt 0:00:17]} 5. O-O {[%emt 0:00:32]} a6 {[%emt 0:00:26]} 6. Bd3 {[%emt 0:00:44]} Nf6 {[%emt 0:00:10]} 7. e5 {[%emt 0:14:33]} Nxf3+ {[%emt 0:01:58]} 8. Qxf3 {[%emt 0:00:48]} Ng8 {[%emt 0:00:05]} 9. Ne4 {[%emt 0:08:28]} d5 {[%emt 0:02:33]} 10. exd6 {[%emt 0:00:54]} Bxd6 {[%emt 0:00:09]} 11. Nxd6+ {[%emt 0:01:52]} Qxd6 {[%emt 0:00:03]} 12. Qg3 {[%emt 0:03:09]} Qxg3 {[%emt 0:00:30]} 13. hxg3 {[%emt 0:01:24]} Nf6 {[%emt 0:00:05]} 14. b3 {[%emt 0:01:34]} b6 {[%emt 0:01:37]} 15. Bb2 {[%emt 0:01:34]} Bb7 {[%emt 0:01:31]} 16. Be2 {[%emt 0:03:24]} h5 {[%emt 0:07:35]} 17. d4 {[%emt 0:13:47]} h4 {[%emt 0:02:00]} 18. gxh4 {[%emt 0:07:18]} Rxh4 {[%emt 0:00:21]} 19. dxc5 {[%emt 0:00:30]} O-O-O {[%emt 0:11:25]} 20. Bxf6 {[%emt 0:06:31]} gxf6 {[%emt 1:07:55]} 21. Rad1 {[%emt 0:00:46]} bxc5 {[%emt 0:00:00]} 22. Rxd8+ {[%emt 0:00:49]} Kxd8 {[%emt 0:00:00]} 23. Rd1+ {[%emt 0:00:41]} Kc7 {[%emt 0:00:00]} 24. Rd3 {[%emt 0:08:17]} a5 {[%emt 0:00:00]} 25. Rh3 {[%emt 0:03:00]} Rd4 {[%emt 0:00:00]} 26. Rd3 {[%emt 0:03:21]} Be4 {[%emt 0:00:00]} 27. Rxd4 {[%emt 0:01:43]} cxd4 {[%emt 0:00:00]} 28. Bd3 {[%emt 0:00:23]} Bxd3 {[%emt 0:00:00]} 29. cxd3 {[%emt 0:00:08]} a4 {[%emt 0:00:00]} 30. bxa4 {[%emt 0:07:06]} f5 {[%emt 0:00:00]} 31. Kf1 {[%emt 0:05:22]} Kb6 {[%emt 0:00:00]} 32. Ke2 {[%emt 0:01:07]} Ka5 {[%emt 0:00:00]} 33. Kf3 {[%emt 0:00:50]} e5 {[%emt 0:00:00]} 34. g4 {[%emt 0:02:23]} fxg4+ {[%emt 0:00:00]} 35. Kxg4 {[%emt 0:01:16]} e4 {[%emt 0:00:00]} 36. dxe4 {[%emt 0:00:54]} d3 {[%emt 0:00:00]} 37. Kf3 {[%emt 0:01:14]} Kb4 {[%emt 0:00:00]} 38. a5 {[%emt 0:00:32]} Kc3 {[%emt 0:00:00]} 39. a6 {[%emt 0:01:05]} d2 {[%emt 0:00:00]} 40. Ke2 {[%emt 0:01:02]} Kd4 0-1

[Event "XVI Memorial Lezcano Montalvo 2024"]
[Site "Gran Canaria"]
[Date "2024.03.30"]
[Round "8.19"]
[White "Ramos Santana, Marcelino"]
[Black "Marrero Rodriguez, Jorge"]
[Result "1/2-1/2"]
[ECO "C60"]
[WhiteElo "1897"]
[BlackElo "2177"]
[Annotator "RC"]
[PlyCount "89"]
[EventDate "2024.03.23"]
[EventType "swiss"]
[EventCountry "ESP"]
[SourceTitle "playchess.com"]
[Source "ChessBase"]
[SourceQuality "1"]
[TimeControl "5400+30"]

1. e4 {[%emt 0:00:36]} e5 {[%emt 0:00:06]} 2. Nf3 {[%emt 0:00:46]} Nc6 {[%emt 0:00:08]} 3. Bb5 {[%emt 0:00:06]} Nge7 {[%emt 0:00:22]} 4. c3 {[%emt 0:00:21]} d5 {[%emt 0:00:08]} 5. O-O {[%emt 0:04:35]} dxe4 {[%emt 0:01:52]} 6. Nxe5 {[%emt 0:12:40]} Qd5 {[%emt 0:01:54]} 7. Nxc6 {[%emt 0:00:10]} Qxb5 {[%emt 0:01:15]} 8. Nd4 {[%emt 0:00:03]} Qd5 {[%emt 0:03:40]} 9. f3 {[%emt 0:02:11]} f5 {[%emt 0:01:39]} 10. fxe4 {[%emt 0:04:37]} fxe4 {[%emt 0:00:23]} 11. d3 {[%emt 0:00:48]} exd3 {[%emt 0:01:50]} 12. Qf3 {[%emt 0:04:21]} Bd7 {[%emt 0:06:27]} 13. b4 {[%emt 0:06:18]} Qxf3 {[%emt 0:29:38]} 14. Rxf3 {[%emt 0:02:55]} a5 {[%emt 0:07:08]} 15. b5 {[%emt 0:17:05]} O-O-O {[%emt 0:01:55]} 16. Rxd3 {[%emt 0:08:58]} Bxb5 {[%emt 0:00:43]} 17. Rf3 {[%emt 0:02:16]} Nc6 {[%emt 0:09:36]} 18. Be3 {[%emt 0:13:31]} Nxd4 {[%emt 0:01:42]} 19. cxd4 {[%emt 0:00:27]} c5 {[%emt 0:02:06]} 20. d5 {[%emt 0:02:45]} Bc4 {[%emt 0:02:30]} 21. Nc3 {[%emt 0:01:15]} Bxd5 {[%emt 0:00:17]} 22. Rf5 {[%emt 0:01:11]} Bc6 {[%emt 0:04:40]} 23. Bxc5 {[%emt 0:01:24]} Bxc5+ {[%emt 0:02:11]} 24. Rxc5 {[%emt 0:00:03]} Rd2 {[%emt 0:01:20]} 25. Rg5 {[%emt 0:03:54]} g6 {[%emt 0:01:49]} 26. a4 {[%emt 0:00:25]} Rhd8 {[%emt 0:01:51]} 27. h3 {[%emt 0:00:03]} Rc2 {[%emt 0:02:00]} 28. Nb5 {[%emt 0:00:03]} Kb8 {[%emt 0:01:20]} 29. Ra3 {[%emt 0:00:02]} Rdd2 {[%emt 0:01:47]} 30. Rag3 {[%emt 0:00:03]} b6 {[%emt 0:06:01]} 31. Kh2 {[%emt 0:00:50]} Be4 {[%emt 0:00:51]} 32. h4 {[%emt 0:01:58]} h5 {[%emt 0:00:33]} 33. Rxg6 {[%emt 0:04:47]} Bxg6 {[%emt 0:02:12]} 34. Rxg6 {[%emt 0:00:03]} Kb7 {[%emt 0:01:14]} 35. Rg7+ {[%emt 0:00:11]} Kc8 {[%emt 0:00:33]} 36. Rg6 {[%emt 0:00:26]} Kd7 {[%emt 0:02:48]} 37. Kh3 {[%emt 0:01:10]} Rd3+ {[%emt 0:00:48]} 38. Kh2 {[%emt 0:00:20]} Rc4 {[%emt 0:00:55]} 39. Rxb6 {[%emt 0:03:35]} Rxh4+ {[%emt 0:00:05]} 40. Kg1 {[%emt 0:00:10]} Rxa4 {[%emt 0:00:17]} 41. Rh6 {[%emt 0:00:33]} h4 {[%emt 0:00:46]} 42. Kh2 {[%emt 0:00:14]} Rb4 {[%emt 0:00:57]} 43. Na7 {[%emt 0:00:38]} h3 {[%emt 0:00:56]} 44. Nc6 {[%emt 0:00:30]} hxg2 {[%emt 0:00:42]} 45. Ne5+ {[%emt 0:00:20]} 1/2-1/2

[Event "XVI Memorial Lezcano Montalvo 2024"]
[Site "Gran Canaria"]
[Date "2024.03.30"]
[Round "8.20"]
[White "Hernandez Leon, Sergio"]
[Black "Guerrero Orihuela, Jose Luis"]
[Result "1-0"]
[ECO "B07"]
[WhiteElo "2172"]
[BlackElo "1948"]
[Annotator "RC"]
[PlyCount "49"]
[EventDate "2024.03.23"]
[EventType "swiss"]
[EventCountry "ESP"]
[SourceTitle "playchess.com"]
[Source "ChessBase"]
[SourceQuality "1"]
[TimeControl "5400+30"]

1. e4 {[%emt 0:00:03]} c6 {[%emt 0:03:41]} 2. Ne2 {[%emt 0:00:05]} d6 {[%emt 0:02:05]} 3. d4 {[%emt 0:00:08]} Nf6 {[%emt 0:00:10]} 4. Nbc3 {[%emt 0:00:07]} Nbd7 {[%emt 0:00:10]} 5. g3 {[%emt 0:00:23]} e5 {[%emt 0:00:18]} 6. Bg2 {[%emt 0:00:09]} Be7 {[%emt 0:00:15]} 7. O-O {[%emt 0:00:10]} h5 {[%emt 0:05:04]} 8. h3 {[%emt 0:00:41]} Qc7 {[%emt 0:04:51]} 9. Be3 {[%emt 0:00:31]} Nf8 {[%emt 0:02:44]} 10. Qd2 {[%emt 0:03:03]} Be6 {[%emt 0:07:54]} 11. f4 {[%emt 0:06:18]} Rd8 {[%emt 0:05:04]} 12. d5 {[%emt 0:03:42]} Bd7 {[%emt 0:08:38]} 13. Rad1 {[%emt 0:03:13]} cxd5 {[%emt 0:02:45]} 14. exd5 {[%emt 0:08:47]} Ng6 {[%emt 0:03:34]} 15. f5 {[%emt 0:02:12]} Nf8 {[%emt 0:00:10]} 16. a4 {[%emt 0:02:24]} Rc8 {[%emt 0:08:18]} 17. Nc1 {[%emt 0:03:44]} Qc4 {[%emt 0:04:33]} 18. Rf2 {[%emt 0:01:36]} Qc7 {[%emt 0:10:12]} 19. Nd3 {[%emt 0:01:11]} Bd8 {[%emt 0:00:38]} 20. Re1 {[%emt 0:04:03]} Ng8 {[%emt 0:03:52]} 21. Ne4 {[%emt 0:28:47]} f6 {[%emt 0:01:16]} 22. c4 {[%emt 0:01:49]} b6 {[%emt 0:00:13]} 23. b4 {[%emt 0:00:22]} Nh6 {[%emt 0:00:42]} 24. c5 {[%emt 0:00:49]} Be7 {[%emt 0:00:26]} 25. Bxh6 {[%emt 0:01:14]} 1-0